[Event "*** Titled Tuesday Blitz"]
[Site "Chess.com"]
[Date "2020.01.07"]
[Round "2"]
[White "LarissaSteenbekkers"]
[Black "josiwales"]
[Result "0-1"]
[WhiteElo "1709"]
[BlackElo "2644"]
[TimeControl "180+2"]
[EndTime "13:23:09 PST"]
[Termination "josiwales won by resignation"]

1. e4 {[%clk 0:03:01.9]} 1... c5 {[%clk 0:02:59.2]} 2. Nc3 {[%clk 0:03:00.7]}
2... Nc6 {[%clk 0:02:59.6]} 3. Bb5 {[%clk 0:02:59.2]} 3... Nd4 {[%clk
0:02:59.6]} 4. Nf3 {[%clk 0:02:58.2]} 4... e6 {[%clk 0:02:58]} 5. O-O {[%clk
0:02:55.1]} 5... Ne7 {[%clk 0:02:58.8]} 6. Bd3 {[%clk 0:02:53.4]} 6... Nec6
{[%clk 0:02:59.2]} 7. b3 {[%clk 0:02:52]} 7... Be7 {[%clk 0:03:00.1]} 8. Bb2
{[%clk 0:02:51.2]} 8... O-O {[%clk 0:03:01.6]} 9. Nxd4 {[%clk 0:02:50.6]} 9...
Nxd4 {[%clk 0:03:02]} 10. Ne2 {[%clk 0:02:51.1]} 10... e5 {[%clk 0:03:02.4]} 11.
f4 {[%clk 0:02:49.9]} 11... d6 {[%clk 0:03:01.5]} 12. f5 {[%clk 0:02:47.6]}
12... Bg5 {[%clk 0:03:00.5]} 13. Nxd4 {[%clk 0:02:42.8]} 13... cxd4 {[%clk
0:03:00.6]} 14. Bc4 {[%clk 0:02:40]} 14... Kh8 {[%clk 0:02:59.4]} 15. a4 {[%clk
0:02:39]} 15... a6 {[%clk 0:02:59.8]} 16. Qh5 {[%clk 0:02:36]} 16... Bxd2 {[%clk
0:02:56.7]} 17. f6 {[%clk 0:02:24.3]} 17... g6 {[%clk 0:02:53.4]} 18. Qh4 {[%clk
0:02:16.8]} 18... Be3+ {[%clk 0:02:54]} 19. Kh1 {[%clk 0:02:15]} 19... Be6
{[%clk 0:02:44]} 20. Rf3 {[%clk 0:02:00.6]} 20... Rc8 {[%clk 0:02:15.7]} 21. Bd3
{[%clk 0:01:45.6]} 21... Rg8 {[%clk 0:02:13.8]} 22. Raf1 {[%clk 0:01:32]} 22...
g5 {[%clk 0:02:08.7]} 23. Qh5 {[%clk 0:01:28.2]} 23... Rg6 {[%clk 0:02:09.8]}
24. Bc4 {[%clk 0:01:08.7]} 24... Rxc4 {[%clk 0:02:00.3]} 25. bxc4 {[%clk
0:01:04.7]} 25... g4 {[%clk 0:02:01.8]} 26. Rf5 {[%clk 0:00:55.4]} 26... Bxf5
{[%clk 0:01:45.8]} 27. Qxf5 {[%clk 0:00:50.5]} 27... Rg5 {[%clk 0:01:39.8]} 0-1

[Event "*** Titled Tuesday Blitz"]
[Site "Chess.com"]
[Date "2020.01.07"]
[Round "2"]
[White "hermionegrangermagic"]
[Black "The_Chess_Coach"]
[Result "0-1"]
[WhiteElo "2440"]
[BlackElo "2200"]
[TimeControl "180+2"]
[EndTime "13:23:14 PST"]
[Termination "The_Chess_Coach won by checkmate"]

1. e4 {[%clk 0:03:01.9]} 1... e5 {[%clk 0:03:01]} 2. Nf3 {[%clk 0:03:02.5]} 2...
Nc6 {[%clk 0:03:02.2]} 3. Bb5 {[%clk 0:03:02.7]} 3... a6 {[%clk 0:03:02.7]} 4.
Ba4 {[%clk 0:03:04.1]} 4... Nf6 {[%clk 0:03:03.8]} 5. O-O {[%clk 0:03:05.2]}
5... Be7 {[%clk 0:03:03.8]} 6. Re1 {[%clk 0:03:05.9]} 6... b5 {[%clk 0:03:05.1]}
7. Bb3 {[%clk 0:03:07.5]} 7... O-O {[%clk 0:03:06.6]} 8. a4 {[%clk 0:03:08.7]}
8... d5 {[%clk 0:03:05.3]} 9. axb5 {[%clk 0:03:08.4]} 9... dxe4 {[%clk 0:03:05]}
10. bxc6 {[%clk 0:03:09.1]} 10... exf3 {[%clk 0:03:05.1]} 11. Qxf3 {[%clk
0:03:10]} 11... e4 {[%clk 0:03:07]} 12. Qe3 {[%clk 0:03:05.4]} 12... Bf5 {[%clk
0:03:07.7]} 13. Nc3 {[%clk 0:03:00.5]} 13... Bd6 {[%clk 0:03:01]} 14. h3 {[%clk
0:02:59.8]} 14... Re8 {[%clk 0:02:56]} 15. Nd5 {[%clk 0:02:58.3]} 15... Be5
{[%clk 0:02:51.8]} 16. Nxf6+ {[%clk 0:02:58.7]} 16... Qxf6 {[%clk 0:02:53]} 17.
c3 {[%clk 0:02:57.6]} 17... Qxc6 {[%clk 0:02:49.8]} 18. Ba4 {[%clk 0:02:58]}
18... Qd6 {[%clk 0:02:42.3]} 19. Bxe8 {[%clk 0:02:58.9]} 19... Rxe8 {[%clk
0:02:44.2]} 20. Qe2 {[%clk 0:02:58.2]} 20... Re6 {[%clk 0:02:17]} 21. Ra4 {[%clk
0:02:47]} 21... h6 {[%clk 0:02:03.1]} 22. g4 {[%clk 0:02:31.8]} 22... Bg6 {[%clk
0:01:52.8]} 23. b3 {[%clk 0:02:31.5]} 23... Bh2+ {[%clk 0:01:44.7]} 24. Kh1
{[%clk 0:02:30.1]} 24... Qf4 {[%clk 0:01:44]} 25. d3 {[%clk 0:01:35.5]} 25...
exd3 {[%clk 0:01:42.5]} 26. Bxf4 {[%clk 0:01:21.9]} 26... Rxe2 {[%clk
0:01:43.1]} 27. Rd1 {[%clk 0:01:18.6]} 27... Bxf4 {[%clk 0:01:35.4]} 28. Rxf4
{[%clk 0:01:18.8]} 28... d2 {[%clk 0:01:36.6]} 29. Kg2 {[%clk 0:01:20]} 29...
Bc2 {[%clk 0:01:36.1]} 30. Rxd2 {[%clk 0:01:10.4]} 30... Rxd2 {[%clk 0:01:37]}
31. Rc4 {[%clk 0:01:12]} 31... Bxb3 {[%clk 0:01:33.7]} 32. Rxc7 {[%clk
0:01:11.4]} 32... Bd5+ {[%clk 0:01:35]} 33. Kg3 {[%clk 0:01:11.7]} 33... Rd3+
{[%clk 0:01:34.3]} 34. Kf4 {[%clk 0:01:10.8]} 34... f6 {[%clk 0:01:29.3]} 35. c4
{[%clk 0:01:11.4]} 35... Rf3# {[%clk 0:01:28.8]} 0-1

[Event "*** Titled Tuesday Blitz"]
[Site "Chess.com"]
[Date "2020.01.07"]
[Round "2"]
[White "Naruto-K"]
[Black "filali-marouan"]
[Result "0-1"]
[WhiteElo "2490"]
[BlackElo "2288"]
[TimeControl "180+2"]
[EndTime "13:23:22 PST"]
[Termination "filali-marouan won by resignation"]

1. d4 {[%clk 0:03:01.9]} 1... c6 {[%clk 0:03:01.5]} 2. Nf3 {[%clk 0:03:02.2]}
2... d5 {[%clk 0:03:02.3]} 3. Bf4 {[%clk 0:03:02.3]} 3... Nf6 {[%clk 0:03:03.4]}
4. e3 {[%clk 0:03:02.4]} 4... g6 {[%clk 0:03:04]} 5. c4 {[%clk 0:03:03.3]} 5...
Bg7 {[%clk 0:03:04.4]} 6. Nc3 {[%clk 0:03:02.6]} 6... e6 {[%clk 0:03:04.1]} 7.
h3 {[%clk 0:02:56.5]} 7... O-O {[%clk 0:03:04.8]} 8. c5 {[%clk 0:02:56.1]} 8...
Nbd7 {[%clk 0:03:05.2]} 9. Be2 {[%clk 0:02:54.4]} 9... Re8 {[%clk 0:03:06.2]}
10. Bh2 {[%clk 0:02:51.2]} 10... Ne4 {[%clk 0:03:05.3]} 11. Nxe4 {[%clk
0:02:49.5]} 11... dxe4 {[%clk 0:03:07.2]} 12. Ne5 {[%clk 0:02:51]} 12... Nxe5
{[%clk 0:03:07.4]} 13. Bxe5 {[%clk 0:02:52.5]} 13... Bxe5 {[%clk 0:03:07.4]} 14.
dxe5 {[%clk 0:02:54.4]} 14... Qa5+ {[%clk 0:03:08.1]} 15. Qd2 {[%clk 0:02:52.1]}
15... Qxc5 {[%clk 0:03:08.7]} 16. Qc3 {[%clk 0:02:53.2]} 16... Qxc3+ {[%clk
0:03:07.5]} 17. bxc3 {[%clk 0:02:55.1]} 17... Rd8 {[%clk 0:03:07.2]} 18. Rd1
{[%clk 0:02:54.9]} 18... Bd7 {[%clk 0:03:07.5]} 19. Rd4 {[%clk 0:02:50.6]} 19...
Be8 {[%clk 0:03:07.9]} 20. Rxe4 {[%clk 0:01:56.3]} 20... c5 {[%clk 0:03:06.2]}
21. Rc4 {[%clk 0:01:52.9]} 21... b6 {[%clk 0:03:05.9]} 22. Rh4 {[%clk
0:01:44.7]} 22... Rac8 {[%clk 0:02:52.1]} 23. f3 {[%clk 0:01:41.8]} 23... Rd5
{[%clk 0:02:45.3]} 24. f4 {[%clk 0:01:39.6]} 24... Rcd8 {[%clk 0:02:41.4]} 25.
Rg4 {[%clk 0:01:11.2]} 25... Rd2 {[%clk 0:02:40.6]} 26. h4 {[%clk 0:01:12.4]}
26... h5 {[%clk 0:02:39.9]} 27. Rg5 {[%clk 0:01:12.1]} 27... Bc6 {[%clk
0:02:32.3]} 28. Rh2 {[%clk 0:01:11.6]} 28... Rxa2 {[%clk 0:02:32.2]} 29. g4
{[%clk 0:01:11.4]} 29... Bf3 {[%clk 0:02:17.6]} 30. gxh5 {[%clk 0:01:07]} 30...
Rdd2 {[%clk 0:02:06.1]} 31. Bxf3 {[%clk 0:00:59.6]} 31... Rxh2 {[%clk 0:02:05]}
32. Rg1 {[%clk 0:01:00.8]} 32... Ra1+ {[%clk 0:01:44.1]} 33. Bd1 {[%clk
0:01:01.1]} 33... Rha2 {[%clk 0:01:45]} 34. hxg6 {[%clk 0:01:00.3]} 34... Rxd1+
{[%clk 0:01:45]} 0-1

[Event "*** Titled Tuesday Blitz"]
[Site "Chess.com"]
[Date "2020.01.07"]
[Round "2"]
[White "Mikasinski"]
[Black "ristingho"]
[Result "0-1"]
[WhiteElo "2284"]
[BlackElo "2513"]
[TimeControl "180+2"]
[EndTime "13:23:23 PST"]
[Termination "ristingho won by resignation"]

1. e4 {[%clk 0:03:01.9]} 1... c6 {[%clk 0:02:58.9]} 2. d4 {[%clk 0:03:02.1]}
2... d5 {[%clk 0:03:00.2]} 3. e5 {[%clk 0:03:02.7]} 3... Bf5 {[%clk 0:02:59.4]}
4. h4 {[%clk 0:03:04.1]} 4... c5 {[%clk 0:02:59.3]} 5. dxc5 {[%clk 0:02:49.6]}
5... Nc6 {[%clk 0:02:59.9]} 6. Nf3 {[%clk 0:02:42.1]} 6... e6 {[%clk 0:02:59.5]}
7. c3 {[%clk 0:02:41.5]} 7... Bxc5 {[%clk 0:02:59]} 8. Bd3 {[%clk 0:02:32.3]}
8... Bg4 {[%clk 0:02:57]} 9. Bb5 {[%clk 0:02:27]} 9... Ne7 {[%clk 0:02:38.4]}
10. Qa4 {[%clk 0:02:23.1]} 10... Bxf3 {[%clk 0:02:36.9]} 11. gxf3 {[%clk
0:02:23.5]} 11... a6 {[%clk 0:02:34.8]} 12. Bxc6+ {[%clk 0:02:21.4]} 12... Nxc6
{[%clk 0:02:33.8]} 13. f4 {[%clk 0:02:14.8]} 13... O-O {[%clk 0:02:31.1]} 14. h5
{[%clk 0:02:02.1]} 14... h6 {[%clk 0:02:25.5]} 15. b4 {[%clk 0:01:28.2]} 15...
b5 {[%clk 0:02:13.9]} 16. Qc2 {[%clk 0:01:26.4]} 16... Bb6 {[%clk 0:02:15.1]}
17. Be3 {[%clk 0:01:23.4]} 17... d4 {[%clk 0:02:16]} 18. cxd4 {[%clk 0:01:16.4]}
18... Nxb4 {[%clk 0:01:59.4]} 19. Qd2 {[%clk 0:01:15.3]} 19... Bxd4 {[%clk
0:01:39.5]} 20. Bxd4 {[%clk 0:01:07]} 20... Qxd4 {[%clk 0:01:39.2]} 21. Qxd4
{[%clk 0:01:07.5]} 21... Nc2+ {[%clk 0:01:40.5]} 22. Kd2 {[%clk 0:01:05.9]}
22... Nxd4 {[%clk 0:01:42.4]} 23. Na3 {[%clk 0:00:57.8]} 23... Rfd8 {[%clk
0:01:42.8]} 24. Kc3 {[%clk 0:00:52.8]} 24... Ne2+ {[%clk 0:01:41.7]} 25. Kb4
{[%clk 0:00:49.7]} 25... Nxf4 {[%clk 0:01:36.4]} 26. Rad1 {[%clk 0:00:37.6]}
26... Nd3+ {[%clk 0:01:34.9]} 27. Ka5 {[%clk 0:00:36.9]} 27... Nxe5 {[%clk
0:01:33.9]} 28. Rxd8+ {[%clk 0:00:35.5]} 28... Rxd8 {[%clk 0:01:35.8]} 29. Kxa6
{[%clk 0:00:36.7]} 29... Ra8+ {[%clk 0:01:36.6]} 0-1

[Event "*** Titled Tuesday Blitz"]
[Site "Chess.com"]
[Date "2020.01.07"]
[Round "2"]
[White "Zarikovs1999"]
[Black "masrahi"]
[Result "0-1"]
[WhiteElo "2356"]
[BlackElo "1996"]
[TimeControl "180+2"]
[EndTime "13:23:30 PST"]
[Termination "masrahi won by checkmate"]

1. e4 {[%clk 0:02:56.4]} 1... c6 {[%clk 0:02:59.7]} 2. d4 {[%clk 0:02:53.2]}
2... d5 {[%clk 0:03:00.4]} 3. Nc3 {[%clk 0:02:55.1]} 3... dxe4 {[%clk
0:03:01.2]} 4. Nxe4 {[%clk 0:02:57]} 4... Bf5 {[%clk 0:03:02.7]} 5. Ng3 {[%clk
0:02:57.7]} 5... Bg6 {[%clk 0:03:04.4]} 6. h4 {[%clk 0:02:58.9]} 6... h6 {[%clk
0:03:06]} 7. Nf3 {[%clk 0:03:00.8]} 7... Nd7 {[%clk 0:03:06.6]} 8. h5 {[%clk
0:03:02.7]} 8... Bxc2 {[%clk 0:03:06.3]} 9. Bd3 {[%clk 0:03:04.6]} 9... Bxd1
{[%clk 0:03:07.7]} 10. Kxd1 {[%clk 0:02:06.1]} 10... e6 {[%clk 0:03:05.9]} 11.
Bd2 {[%clk 0:01:59.4]} 11... Ngf6 {[%clk 0:03:03.6]} 12. b4 {[%clk 0:01:50]}
12... Nd5 {[%clk 0:02:50.7]} 13. Rb1 {[%clk 0:01:38.1]} 13... Be7 {[%clk
0:02:45]} 14. Ne2 {[%clk 0:01:30.8]} 14... a6 {[%clk 0:02:42.5]} 15. Re1 {[%clk
0:01:28]} 15... N7f6 {[%clk 0:02:37.1]} 16. Ne5 {[%clk 0:01:26.5]} 16... O-O
{[%clk 0:02:35.6]} 17. g4 {[%clk 0:01:18.3]} 17... Bd6 {[%clk 0:02:34.3]} 18. g5
{[%clk 0:01:16.7]} 18... hxg5 {[%clk 0:02:32.1]} 19. Bxg5 {[%clk 0:01:18.6]}
19... Nxb4 {[%clk 0:02:19.9]} 20. Be4 {[%clk 0:01:13.7]} 20... Bxe5 {[%clk
0:02:18.6]} 21. h6 {[%clk 0:01:11.6]} 21... Bxd4 {[%clk 0:02:08.9]} 22. Kc1
{[%clk 0:01:09.7]} 22... Nxa2+ {[%clk 0:02:05]} 23. Kc2 {[%clk 0:01:10]} 23...
Qa5 {[%clk 0:01:52.2]} 24. Rh1 {[%clk 0:01:08.2]} 24... Qxg5 {[%clk 0:01:47.3]}
25. Rbg1 {[%clk 0:01:09]} 25... Qc5+ {[%clk 0:01:46.4]} 26. Kd1 {[%clk
0:01:03.9]} 26... Nxe4 {[%clk 0:01:41.7]} 27. hxg7 {[%clk 0:01:04.7]} 27...
Nxf2+ {[%clk 0:01:31.2]} 28. Kd2 {[%clk 0:01:04.6]} 28... Qb4+ {[%clk 0:01:22]}
29. Kc2 {[%clk 0:01:03.5]} 29... Qc4+ {[%clk 0:01:21.7]} 30. Kd2 {[%clk
0:01:03.9]} 30... Qd3+ {[%clk 0:01:21.5]} 31. Ke1 {[%clk 0:01:02.6]} 31... Qd1#
{[%clk 0:01:22.7]} 0-1

[Event "*** Titled Tuesday Blitz"]
[Site "Chess.com"]
[Date "2020.01.07"]
[Round "2"]
[White "icychess54"]
[Black "Jbd735"]
[Result "0-1"]
[WhiteElo "2188"]
[BlackElo "2466"]
[TimeControl "180+2"]
[EndTime "13:23:32 PST"]
[Termination "Jbd735 won by checkmate"]

1. c4 {[%clk 0:03:01.9]} 1... c6 {[%clk 0:03:00.6]} 2. Nf3 {[%clk 0:03:02.8]}
2... d5 {[%clk 0:03:02]} 3. e3 {[%clk 0:03:03.4]} 3... Nf6 {[%clk 0:03:03.1]} 4.
Nc3 {[%clk 0:03:04.5]} 4... e6 {[%clk 0:03:02.7]} 5. b3 {[%clk 0:03:05.6]} 5...
Nbd7 {[%clk 0:03:02.1]} 6. Bb2 {[%clk 0:03:06.8]} 6... Bd6 {[%clk 0:03:03.6]} 7.
d4 {[%clk 0:03:04.8]} 7... Qe7 {[%clk 0:03:00.3]} 8. Be2 {[%clk 0:03:04.7]} 8...
O-O {[%clk 0:02:56.1]} 9. O-O {[%clk 0:03:05]} 9... a6 {[%clk 0:02:56.7]} 10. a4
{[%clk 0:03:04.1]} 10... e5 {[%clk 0:02:54.3]} 11. dxe5 {[%clk 0:03:03.9]} 11...
Nxe5 {[%clk 0:02:56.2]} 12. cxd5 {[%clk 0:03:03.3]} 12... Nfg4 {[%clk
0:02:21.7]} 13. h3 {[%clk 0:02:56.7]} 13... Nxf3+ {[%clk 0:02:20]} 14. Bxf3
{[%clk 0:02:57.4]} 14... Qe5 {[%clk 0:02:20.9]} 15. g3 {[%clk 0:02:45.9]} 15...
Nxe3 {[%clk 0:02:21.5]} 16. fxe3 {[%clk 0:01:53.5]} 16... Qxg3+ {[%clk
0:02:21.4]} 17. Bg2 {[%clk 0:01:55.1]} 17... Qh2+ {[%clk 0:02:16.2]} 18. Kf2
{[%clk 0:01:56.1]} 18... Qg3+ {[%clk 0:02:16.5]} 19. Kg1 {[%clk 0:01:56.3]}
19... Qh2+ {[%clk 0:00:34.5]} 20. Kf2 {[%clk 0:01:54.3]} 20... Bg3+ {[%clk
0:00:35.4]} 21. Kf3 {[%clk 0:01:53.7]} 21... Bh4 {[%clk 0:00:36.7]} 22. Ne2
{[%clk 0:01:29.2]} 22... Bxh3 {[%clk 0:00:34.7]} 23. Rg1 {[%clk 0:01:23.6]}
23... f5 {[%clk 0:00:25.4]} 24. Bxh3 {[%clk 0:01:09.5]} 24... Qf2# {[%clk
0:00:25]} 0-1

[Event "*** Titled Tuesday Blitz"]
[Site "Chess.com"]
[Date "2020.01.07"]
[Round "2"]
[White "chessking2151"]
[Black "Indianlad"]
[Result "0-1"]
[WhiteElo "2595"]
[BlackElo "2929"]
[TimeControl "180+2"]
[EndTime "13:23:49 PST"]
[Termination "Indianlad won by resignation"]

1. d4 {[%clk 0:03:01.6]} 1... Nf6 {[%clk 0:03:00.9]} 2. c4 {[%clk 0:02:56.8]}
2... e6 {[%clk 0:03:01.6]} 3. Nf3 {[%clk 0:02:57.1]} 3... d5 {[%clk 0:03:02.1]}
4. Nc3 {[%clk 0:02:56.2]} 4... c6 {[%clk 0:03:03.5]} 5. e3 {[%clk 0:02:56.5]}
5... Nbd7 {[%clk 0:03:04.8]} 6. Qc2 {[%clk 0:02:54.8]} 6... b6 {[%clk
0:03:03.8]} 7. a3 {[%clk 0:01:58.1]} 7... Bb7 {[%clk 0:03:03.5]} 8. Bd3 {[%clk
0:01:49.7]} 8... Be7 {[%clk 0:03:02.6]} 9. O-O {[%clk 0:01:48]} 9... O-O {[%clk
0:03:01.7]} 10. b4 {[%clk 0:01:12.5]} 10... dxc4 {[%clk 0:03:01.3]} 11. Bxc4
{[%clk 0:01:13.3]} 11... c5 {[%clk 0:03:00.8]} 12. dxc5 {[%clk 0:01:13.7]} 12...
bxc5 {[%clk 0:03:01.3]} 13. b5 {[%clk 0:01:12.8]} 13... Bxf3 {[%clk 0:03:01.1]}
14. gxf3 {[%clk 0:01:12.9]} 14... Qc7 {[%clk 0:02:58.6]} 15. Bb2 {[%clk
0:00:55.6]} 15... Qe5 {[%clk 0:02:51.7]} 16. f4 {[%clk 0:00:38.8]} 16... Qh5
{[%clk 0:02:52]} 17. Qe2 {[%clk 0:00:31.3]} 17... Qh3 {[%clk 0:02:35.2]} 18. f3
{[%clk 0:00:30]} 18... Nb6 {[%clk 0:02:35.7]} 19. Ba2 {[%clk 0:00:30.1]} 19...
c4 {[%clk 0:02:35.8]} 20. a4 {[%clk 0:00:20.2]} 20... Bc5 {[%clk 0:02:31.7]} 21.
Kh1 {[%clk 0:00:20]} 21... Rfd8 {[%clk 0:02:30.7]} 22. Rg1 {[%clk 0:00:10.9]}
22... g6 {[%clk 0:02:32.2]} 23. a5 {[%clk 0:00:11.3]} 23... Nbd5 {[%clk
0:02:32.3]} 24. Nxd5 {[%clk 0:00:12.3]} 24... Nxd5 {[%clk 0:02:34]} 25. Rg3
{[%clk 0:00:10]} 25... Qh6 {[%clk 0:02:30.7]} 26. Qxc4 {[%clk 0:00:08.8]} 26...
Bxe3 {[%clk 0:02:31.2]} 27. f5 {[%clk 0:00:08]} 27... exf5 {[%clk 0:02:13.6]}
28. Rf1 {[%clk 0:00:06.8]} 28... Rac8 {[%clk 0:02:10.9]} 29. Qd3 {[%clk
0:00:05.2]} 29... Nc3 {[%clk 0:01:46.3]} 30. Qc2 {[%clk 0:00:04.5]} 30... Rd2
{[%clk 0:01:46.1]} 0-1

[Event "*** Titled Tuesday Blitz"]
[Site "Chess.com"]
[Date "2020.01.07"]
[Round "2"]
[White "kleinebeer98"]
[Black "BeanScreen"]
[Result "1-0"]
[WhiteElo "2698"]
[BlackElo "2407"]
[TimeControl "180+2"]
[EndTime "13:23:52 PST"]
[Termination "kleinebeer98 won by resignation"]

1. e4 {[%clk 0:03:01.9]} 1... e5 {[%clk 0:03:00.8]} 2. Nf3 {[%clk 0:03:02.6]}
2... Nc6 {[%clk 0:03:02.5]} 3. d4 {[%clk 0:03:03]} 3... exd4 {[%clk 0:03:04.1]}
4. c3 {[%clk 0:03:04.5]} 4... Nf6 {[%clk 0:03:04.4]} 5. e5 {[%clk 0:03:05.4]}
5... Nd5 {[%clk 0:03:06]} 6. cxd4 {[%clk 0:03:06.4]} 6... Bb4+ {[%clk
0:03:07.5]} 7. Bd2 {[%clk 0:03:06]} 7... O-O {[%clk 0:03:07]} 8. Bd3 {[%clk
0:03:06.6]} 8... d6 {[%clk 0:03:05]} 9. O-O {[%clk 0:03:05.3]} 9... Bg4 {[%clk
0:03:06.1]} 10. exd6 {[%clk 0:03:01.1]} 10... Nxd4 {[%clk 0:02:40.5]} 11. dxc7
{[%clk 0:02:56]} 11... Qxc7 {[%clk 0:02:27.3]} 12. Bxh7+ {[%clk 0:02:51.9]}
12... Kxh7 {[%clk 0:02:28.3]} 13. Ng5+ {[%clk 0:02:52.2]} 13... Kg8 {[%clk
0:02:23.2]} 14. Qxg4 {[%clk 0:02:54.1]} 14... Bxd2 {[%clk 0:01:55.7]} 15. Nxd2
{[%clk 0:02:56]} 15... Nf4 {[%clk 0:01:55.7]} 16. Ndf3 {[%clk 0:02:50.8]} 16...
Rfd8 {[%clk 0:01:53.6]} 17. Rad1 {[%clk 0:02:45.7]} 17... Nde2+ {[%clk
0:01:53.3]} 18. Kh1 {[%clk 0:02:46.8]} 18... Rxd1 {[%clk 0:01:40.5]} 19. Rxd1
{[%clk 0:02:48.7]} 19... Nd3 {[%clk 0:01:42]} 20. Qh4 {[%clk 0:02:39.2]} 20...
Rd8 {[%clk 0:01:16.9]} 21. Rf1 {[%clk 0:02:13.6]} 21... Qb6 {[%clk 0:00:34.2]}
22. h3 {[%clk 0:02:05.9]} 22... Qxb2 {[%clk 0:00:25.9]} 23. Qh7+ {[%clk
0:01:38.2]} 23... Kf8 {[%clk 0:00:27]} 24. Qf5 {[%clk 0:01:40.1]} 24... Nxf2+
{[%clk 0:00:20.7]} 25. Kh2 {[%clk 0:01:39]} 25... Qf6 {[%clk 0:00:05.6]} 26.
Nh7+ {[%clk 0:01:39.4]} 26... Ke7 {[%clk 0:00:04.5]} 27. Nxf6 {[%clk 0:01:41.3]}
27... gxf6 {[%clk 0:00:05.5]} 28. Rxf2 {[%clk 0:01:41.9]} 1-0

[Event "*** Titled Tuesday Blitz"]
[Site "Chess.com"]
[Date "2020.01.07"]
[Round "2"]
[White "patrisiii123"]
[Black "enzovsky"]
[Result "0-1"]
[WhiteElo "2451"]
[BlackElo "2253"]
[TimeControl "180+2"]
[EndTime "13:23:58 PST"]
[Termination "enzovsky won by resignation"]

1. e4 {[%clk 0:02:53.2]} 1... c6 {[%clk 0:03:00.4]} 2. d4 {[%clk 0:02:53.2]}
2... d5 {[%clk 0:03:01.7]} 3. exd5 {[%clk 0:02:54.9]} 3... cxd5 {[%clk
0:03:02.5]} 4. Bd3 {[%clk 0:02:51.5]} 4... Nc6 {[%clk 0:03:01.8]} 5. c3 {[%clk
0:02:52.1]} 5... Nf6 {[%clk 0:03:02.3]} 6. h3 {[%clk 0:02:52]} 6... e5 {[%clk
0:02:58.7]} 7. dxe5 {[%clk 0:02:48.4]} 7... Nxe5 {[%clk 0:03:00.6]} 8. Qe2
{[%clk 0:02:49.9]} 8... Qe7 {[%clk 0:03:00.2]} 9. Bc2 {[%clk 0:02:50.6]} 9...
Bd7 {[%clk 0:02:58.6]} 10. Nd2 {[%clk 0:02:52.1]} 10... O-O-O {[%clk 0:02:55.5]}
11. Ngf3 {[%clk 0:02:50]} 11... Nxf3+ {[%clk 0:02:51.1]} 12. Nxf3 {[%clk
0:02:51.9]} 12... Qxe2+ {[%clk 0:02:48.7]} 13. Kxe2 {[%clk 0:02:53.8]} 13... Bc5
{[%clk 0:02:47.7]} 14. Be3 {[%clk 0:02:53.7]} 14... Rhe8 {[%clk 0:02:46]} 15.
Kd2 {[%clk 0:02:36.9]} 15... Bxe3+ {[%clk 0:02:44.4]} 16. fxe3 {[%clk
0:02:38.8]} 16... Ne4+ {[%clk 0:02:46.3]} 17. Bxe4 {[%clk 0:02:37.4]} 17... dxe4
{[%clk 0:02:46.4]} 18. Nd4 {[%clk 0:02:38.4]} 18... Re5 {[%clk 0:02:41.8]} 19.
Kc2 {[%clk 0:02:37.4]} 19... Rg5 {[%clk 0:02:40.6]} 20. g4 {[%clk 0:02:37.7]}
20... h5 {[%clk 0:02:39.6]} 21. Raf1 {[%clk 0:02:36.5]} 21... hxg4 {[%clk
0:02:37.2]} 22. hxg4 {[%clk 0:02:31.2]} 22... f6 {[%clk 0:02:37.6]} 23. Rf4
{[%clk 0:02:19.9]} 23... Rxg4 {[%clk 0:02:36.1]} 24. Rh4 {[%clk 0:02:10]} 24...
Rg2+ {[%clk 0:02:31.9]} 25. Kb3 {[%clk 0:01:17.3]} 25... g5 {[%clk 0:02:31.8]}
26. Rxe4 {[%clk 0:01:16.3]} 26... gxh4 {[%clk 0:02:22.8]} 27. Rxh4 {[%clk
0:01:18.2]} 27... Rg3 {[%clk 0:02:19.1]} 28. e4 {[%clk 0:01:16.9]} 28... Rg4
{[%clk 0:02:17.8]} 29. Rh6 {[%clk 0:01:11.3]} 29... Rxe4 {[%clk 0:02:16.9]} 30.
Rxf6 {[%clk 0:01:10.2]} 30... Re1 {[%clk 0:02:12.4]} 31. Kb4 {[%clk 0:01:01]}
31... Rg1 {[%clk 0:02:11.1]} 32. b3 {[%clk 0:00:58]} 32... Rh8 {[%clk
0:02:05.6]} 33. a4 {[%clk 0:00:51.2]} 33... b6 {[%clk 0:02:05.3]} 34. Rf3 {[%clk
0:00:42.9]} 34... a5+ {[%clk 0:02:05]} 35. Kc4 {[%clk 0:00:40.2]} 35... Rh3
{[%clk 0:01:59.6]} 36. Rf8+ {[%clk 0:00:37.1]} 36... Kc7 {[%clk 0:02:00.2]} 37.
Rf7 {[%clk 0:00:29]} 37... Rgg3 {[%clk 0:01:55]} 38. Nb5+ {[%clk 0:00:23.4]}
38... Kd8 {[%clk 0:01:55.2]} 0-1